lending/lending_fUSD_20241103
["ID","MTS","AMOUNT","RATE_DAILY","PERIOD"]
[341197598,1730616632457,-151.0,0.000143,2]
[341197599,1730616632468,-151.0,0.000143,2]
[341197600,1730616632477,-246.331747,0.000143,2]
[341197601,1730616632487,-151.0,0.000143,2]
[341197602,1730616632496,-151.0,0.000143,2]
[341197603,1730616632506,-464.240283,0.000143,2]
[341197604,1730616632517,-464.240283,0.000143,2]
[341197606,1730616632527,-464.240283,0.000143,2]
[341197608,1730616632536,-464.240283,0.000143,2]
[341197610,1730616632545,-369.56,0.000143,2]
[341197612,1730616632557,-13113.0487547,0.0001434,2]
[341197614,1730616632567,-13292.4102275,0.0001435,2]
[341197616,1730616632576,-151.0,0.0001435,2]
[341197618,1730616632585,-181.291706,0.0001435,2]
[341197620,1730616632595,-265.135284,0.0001435,2]
[341197621,1730616632604,-468.03,0.0001435,2]
[341197623,1730616632614,-1937.69,0.0001435,2]
[341197626,1730616632623,-464.240283,0.0001435,2]
[341197628,1730616632633,-464.240283,0.0001435,2]
[341197630,1730616632642,-151.0,0.0001436,2]
[341197632,1730616632651,-151.0,0.0001436,2]
[341197634,1730616632660,-464.240283,0.0001436,2]
[341197636,1730616632670,-464.240283,0.0001436,2]
[341197638,1730616632680,-151.0,0.0001437,2]
[341197639,1730616632689,-151.0,0.0001438,2]
[341197641,1730616632699,-1651.07299278,0.0001439,2]
[341197643,1730616632708,-151.0,0.00014398,2]
[341197645,1730616632720,-151.0,0.00014398,2]
[341197647,1730616632729,-151.0,0.00014398,2]
[341197649,1730616632738,-1728.0,0.000144,2]
[341197651,1730616632747,-1087.0,0.000144,2]
[341197653,1730616632756,-411.54,0.00014478,2]
[341197655,1730616632765,-150.0,0.00014498,2]
[341197657,1730616632774,-8613.824707,0.000145,2]
[341197659,1730616632783,-159.98,0.000145,2]
[341197660,1730616632792,-150.0,0.000145,2]
[341197662,1730616632801,-150.0,0.000145,2]
[341197673,1730616632888,-151.0,0.000145,2]
[341197675,1730616632902,-254.388642,0.000145,2]
[341197677,1730616632914,-278.303488,0.000145,2]
[341197679,1730616632924,-864.04,0.000145,2]
[341197681,1730616632934,-192.606324,0.000145,2]
[341197683,1730616632945,-432.02,0.000145,2]
[341197685,1730616632955,-426.57,0.000145,2]
[341197687,1730616632966,-862.78,0.000145,2]
[341197689,1730616632975,-445.18,0.000145,2]
[341197690,1730616632984,-464.240283,0.000145,2]
[341197692,1730616632993,-464.240283,0.000145,2]
[341197694,1730616633003,-150.01,0.00014599,2]
[341197696,1730616633013,-2472.292878,0.00014599,2]
[341197698,1730616633023,-1012.51416589,0.000146,2]
[341197700,1730616633033,-238.66,0.000146,2]
[341197702,1730616633044,-151.0,0.000146,2]
[341197704,1730616633054,-432.02,0.000146,2]
[341197706,1730616633063,-432.02,0.000146,2]
[341197708,1730616633073,-432.02,0.000146,2]
[341197710,1730616633082,-432.02,0.000146,2]
[341197712,1730616633091,-432.02,0.000146,2]
[341197714,1730616633101,-464.240283,0.000146,2]
[341197716,1730616633110,-464.240283,0.000146,2]
[341197718,1730616633120,-158.16217869,0.00014654,2]
[341197720,1730616633129,-153.77,0.00014795,2]
[341197722,1730616633138,-150.0,0.00014795,2]
[341197724,1730616633147,-150.0,0.00014795,2]
[341197726,1730616633157,-150.0,0.00014795,2]
[341197728,1730616633166,-150.0,0.00014795,2]
[341197730,1730616633175,-150.0,0.00014795,2]
[341197732,1730616633184,-150.0,0.00014795,2]
[341197734,1730616633194,-150.0,0.00014795,2]
[341197736,1730616633203,-150.0,0.00014795,2]
[341197738,1730616633212,-151.0,0.00014795,2]
[341197740,1730616633222,-691.91,0.000148,2]
[341197742,1730616633231,-450.55,0.000148,2]
[341197744,1730616633240,-1001.4311,0.00014899,2]
[341197746,1730616633250,-203.41223602,0.000149,2]
[341197748,1730616633259,-500.0,0.00014973,2]
[341197750,1730616633268,-500.0,0.00014973,2]
[341197752,1730616633277,-510.79110373,0.00014973,2]
[341197754,1730616633287,-500.0,0.00014973,2]
[341197755,1730616633296,-507.840485,0.00014973,2]
[341197757,1730616633305,-178.07935769,0.0001499,2]
[341197759,1730616633314,-82416.24445154,0.00015,2]
[341197762,1730616633331,-4940.35435108,0.00015,2]
[341197764,1730616633342,-614.72573488,0.00015,2]
[341197797,1730616638226,-198.417088,0.000143,2]
[341197798,1730616638235,-198.417088,0.000143,2]
[341197799,1730616638244,-198.417088,0.000143,2]
[341197800,1730616638253,-151.0,0.000143,2]
[341197801,1730616638262,-151.0,0.000143,2]
[341197802,1730616638272,-198.417088,0.000143,2]
[341197803,1730616638355,-198.417088,0.0001434,2]
[341197804,1730616638366,-151.0,0.0001434,2]
[341197805,1730616638375,-198.417088,0.0001434,2]
[341197806,1730616638385,-198.417088,0.0001435,2]
[341197807,1730616638394,-151.0,0.0001435,2]
[341197808,1730616638403,-198.417088,0.0001435,2]
[341197809,1730616638412,-198.417088,0.000145,2]
[341197810,1730616638421,-68.346208,0.000145,2]
[341197821,1730616640088,-82.653792,0.000145,2]
[341197822,1730616640098,-198.417088,0.000145,2]
[341197823,1730616640107,-1236.146439,0.00014599,2]
[341197824,1730616640116,-198.417088,0.000146,2]
[341197825,1730616640126,-151.0,0.000146,2]
[341197826,1730616640135,-198.417088,0.000146,2]
[341197827,1730616640144,-7385.030217,0.00015,2]
[341197828,1730616640156,-7443.06862629,0.00015,2]
[341197829,1730616640167,-4606.84966171,0.00015,2]
[341197835,1730616643178,-1000.0,0.000142,2]
[341197836,1730616643188,-151.0,0.000143,2]
[341197837,1730616643198,-151.0,0.000143,2]
[341197838,1730616643208,-67.47081825,0.0001433,2]
[341197839,1730616643232,-5251.78624635,0.0001433,2]
[341197840,1730616643242,-151.0,0.0001434,2]
[341197841,1730616643251,-274.53333,0.0001435,2]
[341197842,1730616643260,-500.0,0.00014973,2]
[341197843,1730616643269,-24786.30812307,0.00015,2]
[341197844,1730616643396,-35649.11429302,0.00015,2]
[341197845,1730616643411,-32495.33543443,0.00015,2]
[341197846,1730616643420,-464.240283,0.00015,2]
[341197847,1730616643429,-464.240283,0.00015,2]
[341197848,1730616643438,-198.417088,0.00015,2]
[341197849,1730616643448,-151.0,0.00015,2]
[341197850,1730616643457,-198.417088,0.00015,2]
[341197851,1730616643467,-156.96,0.00015093,2]
[341197852,1730616643476,-158.16217869,0.00015108,2]
[341197853,1730616643486,-411.54,0.00015167,2]
[341197854,1730616643495,-298.45,0.0001519,2]
[341197855,1730616643505,-154.6,0.00015342,2]
[341197856,1730616643514,-161.28,0.00015342,2]
[341197857,1730616643523,-155.15,0.00015342,2]
[341197858,1730616643533,-153.74,0.00015342,2]
[341197859,1730616643543,-159.4,0.00015342,2]
[341197860,1730616643552,-200.0,0.00015547,2]
[341197861,1730616643562,-420.0,0.00015553,2]
[341197862,1730616643575,-158.16217869,0.00015562,2]
[341197863,1730616643585,-5300.0,0.000156,5]
[341197864,1730616643595,-150.0,0.00015616,2]
[341197865,1730616643604,-150.0,0.00015616,2]
[341197866,1730616643616,-1000.0,0.00015632,2]
[341197867,1730616643625,-198.417088,0.00015642,2]
[341197868,1730616643635,-198.417088,0.00015642,2]
[341197869,1730616643645,-151.0,0.00015642,2]
[341197870,1730616643655,-8167.0,0.00015671,2]
[341197871,1730616643664,-464.240283,0.00015671,2]
[341197872,1730616643673,-464.240283,0.00015671,2]
[341197873,1730616643682,-6600.0,0.000157,5]
[341197874,1730616643691,-198.417088,0.000157,2]
[341197875,1730616643701,-198.417088,0.000157,2]
[341197876,1730616643710,-151.0,0.000157,2]
[341197877,1730616643720,-1300.0,0.000158,5]
[341197878,1730616643729,-438.08,0.00015856,2]
[341197879,1730616643739,-411.54,0.00015857,2]
[341197880,1730616643748,-172.54072295,0.0001589,2]
[341197881,1730616643757,-1136.43,0.0001589,2]
[341197882,1730616643767,-1300.0,0.000159,5]
[341197883,1730616643776,-1968.54451228,0.000159,2]
[341197884,1730616643785,-320.4763814,0.000159,2]
[341197885,1730616643794,-196.01875054,0.000159,2]
[341197886,1730616643803,-187.8815517,0.000159,2]
[341197887,1730616643813,-464.240283,0.000159,2]
[341197888,1730616643823,-14688.30045267,0.000159,2]
[341197889,1730616643832,-464.240283,0.000159,2]
[341197890,1730616643842,-198.417088,0.000159,2]
[341197891,1730616643851,-198.417097,0.000159,2]
[341197892,1730616643860,-151.0,0.000159,2]
[341197893,1730616643870,-8576.0,0.00015929,2]
[341197894,1730616643879,-13462.133329,0.00015989,2]
[341197895,1730616643889,-13811.2179034,0.00015989,2]
[341197896,1730616643898,-378.95351841,0.00015989,2]
[341197897,1730616646271,-150.0,0.000148,2]
[341197898,1730616646281,-618.0732195,0.00014999,2]
[341197899,1730616646290,-406.19252117,0.00015989,2]
[341197900,1730616646309,-622.90142209,0.00015989,2]
[341197901,1730616735016,1837.40339376,0.000158,7]
[341197902,1730616735043,1394.54652772,0.000158,7]
[341197903,1730616863937,652.1,0.00013044,2]
[341197905,1730617477086,-2500.0,0.000141,2]
[341197906,1730617477110,-1337.45788395,0.000141,2]
[341197907,1730617477131,-5149.07734807,0.0001419,2]
[341197908,1730617477152,-5213.46476798,0.000142,2]
[341197909,1730617557479,619.49,0.00012775,2]
[341197917,1730617832389,-2500.0,0.000141,2]
[341197918,1730617832398,-488.54533529,0.000142,2]
[341197919,1730617832411,-4781.02268136,0.000142,2]
[341197920,1730617832593,-14521.37766506,0.000142,2]
[341197921,1730617832606,-843.56564249,0.000142,2]
[341197922,1730617832626,-5266.22263187,0.000142,2]
[341197923,1730617832638,-449.99,0.000142,2]
[341197924,1730617832709,-343.505,0.000142,2]
[341197925,1730617832721,-901.0,0.000142,2]
[341197926,1730617832732,-1078.10766177,0.000142,2]
[341197927,1730617832743,-2167.0,0.000142,2]
[341197928,1730617838437,-55879.375,0.000142,2]
[341197929,1730617838705,-8066.82361418,0.000142,2]
[341197930,1730617838714,-437.32663927,0.000142,2]
[341197987,1730617840624,-1267.9177056,0.000142,2]
[341198013,1730617997747,-10000.0,0.000141,2]
[341198014,1730618077048,617.79,0.00012658,2]
[341198017,1730618601841,586.9,0.0001254,2]
[341198018,1730618656880,-961.33618035,0.000139,2]
[341198019,1730618656903,-300.0,0.00013999,2]
[341198020,1730618656925,-1000.0,0.00014,2]
[341198021,1730618656947,-1203.71209551,0.00014,2]
[341198022,1730618656974,-158.16217869,0.00014,2]
[341198023,1730618656998,-2500.0,0.00014,2]
[341198024,1730618657023,-2594.733122,0.00014099,2]
[341198025,1730618657043,-2594.733122,0.00014099,2]
[341198026,1730618657063,-2594.733122,0.00014099,2]
[341198027,1730618657081,-2594.733122,0.00014099,2]
[341198028,1730618657104,-2594.733122,0.00014099,2]
[341198029,1730618657124,-2594.733122,0.00014099,2]
[341198030,1730618657234,-2594.733122,0.00014099,2]
[341198031,1730618657255,-2594.733122,0.00014099,2]
[341198032,1730618657277,-2594.733122,0.00014099,2]
[341198033,1730618657298,-2594.733122,0.00014099,2]
[341198034,1730618657320,-2594.733122,0.00014099,2]
[341198035,1730618657343,-2594.733122,0.00014099,2]
[341198036,1730618657364,-2594.733122,0.00014099,2]
[341198037,1730618657384,-2594.733122,0.00014099,2]
[341198038,1730618657404,-2594.733122,0.00014099,2]
[341198039,1730618657425,-2594.733122,0.00014099,2]
[341198040,1730618657445,-2594.733122,0.00014099,2]
[341198041,1730618657464,-2594.733122,0.00014099,2]
[341198042,1730618657488,-660.59334945,0.00014099,2]
[341198043,1730618719961,369.47496024,9e-05,2]
[341198044,1730618741806,-1000.0,0.00014,2]
[341198045,1730618741828,-1934.13977255,0.00014099,2]
[341198046,1730618741850,-2767.71533012,0.00014099,2]
[341198047,1730618741871,-2767.71533012,0.00014099,2]
[341198048,1730618741892,-2767.71533012,0.00014099,2]
[341198049,1730618741914,-2767.71533012,0.00014099,2]
[341198050,1730618741934,-2767.71533012,0.00014099,2]
[341198051,1730618741955,-2767.71533012,0.00014099,2]
[341198052,1730618741975,-2767.71533012,0.00014099,2]
[341198053,1730618741996,-1976.85291661,0.00014099,2]
[341198058,1730618858224,150.8185445,0.00015,15]
[341198094,1730619031608,-595.25758373,0.000139,2]
[341198095,1730619031617,-300.0,0.00013999,2]
[341198096,1730619031626,-671.1539,0.00014,2]
[341198097,1730619031635,-1000.0,0.00014,2]
[341198098,1730619031644,-149.33669266,0.00014,2]
[341198099,1730619031657,-679.9999999,0.00014,2]
[341198100,1730619031676,-1670.66330744,0.00014,2]
[341198101,1730619031686,-1083.34088595,0.00014,2]
[341198102,1730619031695,-196.16561996,0.00014099,2]
[341198103,1730619031704,-790.86241351,0.00014099,2]
[341198104,1730619031714,-2767.71533012,0.00014099,2]
[341198105,1730619031725,-75715.25244301,0.000141,2]
[341198117,1730619037553,-7339.8923191,0.000141,2]
[341198118,1730619037566,-3540.77559661,0.000141,2]
[341198151,1730619039752,-1000.0,0.000141,2]
[341198152,1730619039894,-1449.35918265,0.000141,2]
[341198167,1730619043805,-20.27969769,0.000141,2]
[341198169,1730619090209,557.55,0.0001262,2]
[341198170,1730619174958,1006.88,0.00025,30]
[341198171,1730619326637,2000.0,0.00025,30]
[341198172,1730619433187,2000.0,0.00025,30]
[341198173,1730619502126,900.0,0.00025,30]
[341198175,1730619623989,529.67,0.00012164,2]
[341198177,1730619657359,300.0,0.000153,5]
[341198178,1730619659440,600.0,0.000154,5]
[341198179,1730619661537,900.0,0.000155,5]
[341198180,1730619883929,-20600.0,0.000139,2]
[341198181,1730619906748,-7150.0,0.000139,2]
[341198184,1730620060642,1079.0,0.00013702,2]
[341198186,1730620132702,503.18,0.00012039,2]
[341198188,1730620203690,150.0,0.00012039,2]
[341198189,1730620203901,150.0,0.00012039,2]
[341198190,1730620204085,150.0,0.00012039,2]
[341198191,1730620204268,150.0,0.00012039,2]
[341198192,1730620204511,150.0,0.00012039,2]
[341198193,1730620204658,150.0,0.00012039,2]
[341198194,1730620205132,155.18261288,0.00012039,2]
[341198195,1730620231549,150.0,0.0001325,2]
[341198196,1730620231696,-300.0,0.00013899,2]
[341198198,1730620231705,-403.37788318,0.000139,2]
[341198204,1730620231833,-340.78735789,0.000139,2]
[341198205,1730620231844,-598.85274349,0.000139,2]
[341198206,1730620231890,-38.74347237,0.000139,2]
[341198207,1730620232120,-421.97980131,0.000139,2]
[341198208,1730620232163,-2244.83976544,0.000139,2]
[341198215,1730620237744,-460.86512179,0.000139,2]
[341198216,1730620237755,-20035.39222596,0.000139,2]
[341198217,1730620237888,-0.86593971,0.000139,2]
[341198218,1730620238020,-2001.051,0.000139,2]
[341198372,1730620243737,-278.08303872,0.000139,2]
[341198373,1730620243750,-3004.950001,0.000139,2]
[341198374,1730620243761,-2455.56288007,0.000139,2]
[341198375,1730620243887,-6927.42373768,0.000139,2]
[341198376,1730620243899,-4385.70253139,0.000139,2]
[341198377,1730620243909,-1030.43231069,0.000139,2]
[341198378,1730620243919,-165.27,0.00013976,2]
[341198379,1730620243928,-420.29218792,0.0001398,2]
[341198380,1730620243939,-251.71125,0.0001398,2]
[341198381,1730620243995,-264.30367996,0.0001398,2]
[341198387,1730620245716,-916.11288212,0.0001398,2]
[341198388,1730620245726,-1000.0,0.00013982,2]
[341198389,1730620245736,-2225.18531039,0.00013982,2]
[341198390,1730620245878,-852.919104,0.00013982,2]
[341198391,1730620246022,-284.42427214,0.00013982,2]
[341198392,1730620246032,-50.81019114,0.0001399,2]
[341198393,1730620246043,-343.36980886,0.0001399,2]
[341198394,1730620246052,-200.0,0.00013991,2]
[341198395,1730620246062,-1811.33178038,0.00013999,2]
[341198396,1730620522290,152.66,0.00013223,2]
[341198397,1730620522483,152.66,0.00013236,2]
[341198398,1730620522714,152.66,0.00013249,2]
[341198399,1730620523062,152.66,0.00013262,2]
[341198400,1730620523162,152.66,0.00013276,2]
[341198401,1730620523562,152.66,0.00013289,2]
[341198402,1730620523880,152.66,0.00013302,2]
[341198403,1730620523981,152.66,0.00013315,2]
[341198404,1730620524197,152.66,0.00013328,2]
[341198405,1730620524405,152.66,0.00013342,2]
[341198406,1730620524602,152.66,0.00013355,2]
[341198407,1730620579431,790.91,0.00013344,2]
[341198408,1730620647073,447.0,0.00013271,2]
[341198409,1730620648601,11743.0,0.00013548,2]
[341198410,1730620657152,2616.77,0.00013546,2]
[341198411,1730620698320,516.44,0.00011948,2]
[341198413,1730620980514,800.0,0.00013173,2]
[341198414,1730621020039,23900.0,0.00013173,2]
[341198415,1730621075673,224.43,0.00013132,2]
[341198416,1730621132390,223.5,0.00013157,2]
[341198417,1730621237931,490.61,0.00011256,2]
[341198418,1730621238268,490.61,0.0001352,2]
[341198419,1730621240857,200.0,0.00013699,2]
[341198421,1730621294608,1436.21,0.00013184,2]
[341198430,1730621393911,247.02,0.00013181,2]
[341198431,1730621407321,3238.08,0.000132,2]
[341198432,1730621411974,449.17,0.00013225,2]
[341198441,1730621431805,-305.601223,0.00013724,2]
[341198442,1730621431815,-195.92,0.00013734,2]
[341198443,1730621431825,-236.27,0.00013739,2]
[341198444,1730621431834,-300.0,0.00013799,2]
[341198445,1730621431844,-6901.046,0.000138,2]
[341198446,1730621431853,-7150.0973,0.000138,2]
[341198448,1730621431864,-403.87586623,0.00013809,2]
[341198449,1730621431874,-167.02,0.00013853,2]
[341198450,1730621431886,-2853.03,0.00013853,2]
[341198451,1730621431896,-8300.11242328,0.0001386,2]
[341198452,1730621431905,-150.99,0.00013887,2]
[341198453,1730621431915,-170.43,0.00013887,2]
[341198454,1730621431925,-202.75567051,0.00013898,2]
[341198455,1730621431934,-1852.63944911,0.00013899,2]
[341198456,1730621431943,-1852.63944911,0.00013899,2]
[341198457,1730621431952,-1852.63944911,0.00013899,2]
[341198458,1730621431962,-1852.63944911,0.00013899,2]
[341198459,1730621431971,-1852.63944911,0.00013899,2]
[341198460,1730621431979,-1852.63944911,0.00013899,2]
[341198461,1730621431988,-1698.19884509,0.00013899,2]
[341198462,1730621432001,-154.44060402,0.00013899,2]
[341198463,1730621432010,-1692.03989598,0.00013899,2]
[341198464,1730621432021,-160.59955313,0.00013899,2]
[341198465,1730621432031,-281.17094687,0.00013899,2]
[341198466,1730621432042,-1571.46850224,0.00013899,2]
[341198467,1730621432051,-1429.20680389,0.00013899,2]
[341198468,1730621432062,-423.43264522,0.00013899,2]
[341198469,1730621432072,-1635.0646926,0.00013899,2]
[341198470,1730621432083,-217.57475651,0.00013899,2]
[341198471,1730621432092,-1852.63944911,0.00013899,2]
[341198472,1730621432102,-1852.63944911,0.00013899,2]
[341198473,1730621432112,-1462.8848368,0.00013899,2]
[341198474,1730621432125,-389.75461231,0.00013899,2]
[341198475,1730621432135,-1790.36823047,0.00013899,2]
[341198476,1730621432146,-62.27121864,0.00013899,2]
[341198477,1730621432157,-414.35988718,0.00013899,2]
[341198478,1730621432176,-925.1775,0.00013899,2]
[341198481,1730621437929,-513.10206193,0.00013899,2]
[341198482,1730621437940,-220.89049249,0.00013899,2]
[341198483,1730621437951,-829.98108371,0.00013899,2]
[341198484,1730621437982,-801.76787291,0.00013899,2]
[341198485,1730621437992,-1695.22161008,0.00013899,2]
[341198486,1730621438256,-157.41783903,0.00013899,2]
[341198487,1730621438265,-1852.63944911,0.00013899,2]
[341198488,1730621438274,-1976.1487457,0.00013899,2]
[341198489,1730621438283,-1976.1487457,0.00013899,2]
[341198490,1730621438292,-1976.1487457,0.00013899,2]
[341198491,1730621438301,-1976.1487457,0.00013899,2]
[341198493,1730621438310,-1976.1487457,0.00013899,2]
[341198495,1730621438319,-1976.1487457,0.00013899,2]
[341198497,1730621438328,-1976.1487457,0.00013899,2]
[341198499,1730621438339,-1976.1487457,0.00013899,2]
[341198501,1730621438348,-155.631023,0.00013899,2]
[341198503,1730621438359,-156.155173,0.00013899,2]
[341198505,1730621438368,-151.0,0.00013899,2]
[341198507,1730621438377,-171.733324,0.00013899,2]
[341198509,1730621438387,-154.329975,0.00013899,2]
[341198511,1730621438396,-151.0,0.00013899,2]
[341198513,1730621438406,-160.427143,0.00013899,2]
[341198515,1730621438415,-151.0,0.00013899,2]
[341198517,1730621438424,-151.0,0.00013899,2]
[341198519,1730621438434,-3050.6727,0.000139,2]
[341198521,1730621438443,-417.1476,0.000139,2]
[341198523,1730621438454,-2950.0209,0.000139,2]
[341198525,1730621438464,-2696.2931,0.000139,2]
[341198527,1730621438474,-16199.8842,0.000139,2]
[341198529,1730621438484,-381.8395,0.000139,2]
[341198531,1730621438494,-43654.6744,0.000139,2]
[341198533,1730621438504,-245000.0,0.000139,2]
[341198536,1730621438513,-500.0,0.000139,2]
[341198546,1730621438611,-100000.0,0.000139,2]
[341198548,1730621438625,-151.0,0.000139,2]
[341198550,1730621438634,-151.0,0.000139,2]
[341198552,1730621438646,-151.0,0.000139,2]
[341198554,1730621438656,-152.28881,0.000139,2]
[341198556,1730621438665,-151.0,0.000139,2]
[341198558,1730621438674,-151.0,0.000139,2]
[341198560,1730621438684,-171.182884,0.000139,2]
[341198562,1730621438694,-186.435872,0.000139,2]
[341198564,1730621438703,-151.0,0.000139,2]
[341198566,1730621438713,-151.0,0.000139,2]
[341198568,1730621438723,-151.0,0.000139,2]
[341198570,1730621438732,-151.0,0.000139,2]
[341198571,1730621438741,-151.0,0.000139,2]
[341198573,1730621438751,-200.0,0.00013973,2]
[341198575,1730621438760,-151.0,0.00013999,2]
[341198577,1730621438769,-270.509801,0.00014,2]
[341198579,1730621438778,-166.39,0.00014078,2]
[341198580,1730621438787,-2600.0799159,0.00014189,2]
[341198582,1730621438796,-618.07321949,0.00014199,2]
[341198584,1730621438806,-3918.0146781,0.0001429,2]
[341198586,1730621438814,-153.15,0.000143,2]
[341198588,1730621438823,-151.25,0.000143,2]
[341198590,1730621438832,-349.55,0.000143,2]
[341198592,1730621438841,-150.0,0.000143,2]
[341198594,1730621438850,-150.0,0.000143,2]
[341198595,1730621438859,-150.0,0.000143,2]
[341198597,1730621438868,-150.0,0.000143,2]
[341198599,1730621438877,-150.0,0.000143,2]
[341198601,1730621438886,-150.0,0.000143,2]
[341198603,1730621438895,-150.0,0.000143,2]
[341198605,1730621438904,-150.0,0.000143,2]
[341198607,1730621438913,-150.0,0.000143,2]
[341198609,1730621438921,-150.0,0.000143,2]
[341198611,1730621438930,-150.0,0.000143,2]
[341198613,1730621438940,-215.81,0.000143,2]
[341198615,1730621438949,-150.0,0.000143,2]
[341198616,1730621438958,-155.27,0.0001435,2]
[341198618,1730621438967,-155.27,0.00014359,2]
[341198620,1730621438976,-155.27,0.00014368,2]
[341198622,1730621438985,-155.27,0.00014377,2]
[341198624,1730621438994,-150.0,0.00014384,2]
[341198626,1730621439003,-155.27,0.00014386,2]
[341198628,1730621439012,-155.27,0.00014395,2]
[341198630,1730621439021,-150.0,0.000144,2]
[341198631,1730621439031,-150.0,0.000144,2]
[341198633,1730621439040,-150.0,0.000144,2]
[341198635,1730621439049,-150.0,0.000144,2]
[341198637,1730621439058,-150.0,0.000144,2]
[341198639,1730621439067,-150.0,0.000144,2]
[341198641,1730621439076,-150.0,0.000144,2]
[341198643,1730621439085,-152.25,0.000144,2]
[341198645,1730621439094,-155.27,0.00014404,2]
[341198646,1730621439103,-155.27,0.00014413,2]
[341198648,1730621439112,-155.27,0.00014422,2]
[341198650,1730621439121,-155.27,0.00014431,2]
[341198652,1730621439130,-155.27,0.0001444,2]
[341198654,1730621439139,-155.27,0.00014449,2]
[341198656,1730621439147,-155.27,0.00014458,2]
[341198658,1730621439156,-155.27,0.00014467,2]
[341198659,1730621439165,-155.27,0.00014476,2]
[341198661,1730621439174,-155.27,0.00014485,2]
[341198663,1730621439182,-155.27,0.00014494,2]
[341198665,1730621439192,-150.0,0.000145,2]
[341198667,1730621439201,-150.0,0.000145,2]
[341198669,1730621439210,-156.96,0.00014652,2]
[341198671,1730621439219,-800.0,0.00014819,2]
[341198673,1730621439228,-151.0,0.00014846,2]
[341198675,1730621439237,-13596.0,0.00014899,2]
[341198677,1730621439246,-162.601,0.00014899,2]
[341198679,1730621439258,-5914.0,0.00014899,2]
[341198681,1730621439267,-1156.0,0.00014899,2]
[341198683,1730621439277,-4653.7408394,0.00015,2]
[341198685,1730621439286,-224.99,0.00015068,2]
[341198686,1730621439296,-195.92,0.00015107,2]
[341198688,1730621439305,-420.0,0.00015121,2]
[341198690,1730621439315,-1000.0,0.000153,2]
[341198692,1730621439325,-157.15,0.00015342,2]
[341198694,1730621439334,-151.43,0.00015342,2]
[341198696,1730621439343,-155.95,0.00015342,2]
[341198698,1730621439352,-157.67,0.00015342,2]
[341198700,1730621439361,-150.0,0.00015519,2]
[341198702,1730621439370,-151.522,0.00015519,2]
[341198704,1730621439380,-150.0,0.00015519,2]
[341198706,1730621439389,-150.0,0.00015519,2]
[341198708,1730621439398,-150.0,0.00015519,2]
[341198709,1730621439408,-150.0,0.00015519,2]
[341198711,1730621439418,-150.0,0.00015519,2]
[341198712,1730621439427,-204.2,0.00015519,2]
[341198714,1730621439436,-1251.0,0.00015519,2]
[341198716,1730621439445,-452.0,0.00015519,2]
[341198718,1730621439454,-261.335,0.00015519,2]
[341198720,1730621439463,-1986.0,0.00015519,2]
[341198722,1730621439473,-561.258,0.00015519,2]
[341198724,1730621439482,-3374.0,0.00015519,2]
[341198725,1730621439492,-1793.0,0.00015519,2]
[341198727,1730621439501,-1270.142,0.00015519,2]
[341198730,1730621439512,-2905.0,0.00015519,2]
[341198731,1730621439521,-819.0,0.00015519,2]